fUST/lending_fUST_20260605
["ID","MTS","AMOUNT","RATE_DAILY","PERIOD"]
[424139850,1780608646000,-500.0,0.00016168,2]
[424139847,1780608646000,-500.0,0.00016167,2]
[424139843,1780608646000,-1115.37,0.00016167,2]
[424139841,1780608646000,-500.0,0.00016167,2]
[424139840,1780608646000,-935.62,0.00016164,2]
[424139859,1780608646000,-500.0,0.00016438,2]
[424139927,1780608647000,-922.81,0.00016986,2]
[424139925,1780608647000,-500.0,0.00016986,2]
[424139920,1780608647000,-181.47,0.00016894,2]
[424139921,1780608647000,-365.07657816,0.00016948,2]
[424139917,1780608647000,-179.71,0.00016815,2]
[424139916,1780608647000,-160.0,0.00016802,2]
[424139919,1780608647000,-179.28,0.00016894,2]
[424139914,1780608647000,-160.0,0.00016802,2]
[424139915,1780608647000,-767.92208879,0.00016802,2]
[424139913,1780608647000,-1804.95840045,0.000168,2]
[424139928,1780608647000,-9212.47,0.00016986,2]
[424139918,1780608647000,-170.47,0.00016883,2]
[424139926,1780608647000,-554.56,0.00016986,2]
[424139942,1780608647000,-500.0,0.00016989,2]
[424139930,1780608647000,-500.0,0.00016986,2]
[424139931,1780608647000,-801.88,0.00016986,2]
[424139929,1780608647000,-500.0,0.00016986,2]
[424139932,1780608647000,-726.76,0.00016986,2]
[424139934,1780608647000,-500.0,0.00016986,2]
[424139933,1780608647000,-798.36,0.00016986,2]
[424139938,1780608647000,-500.0,0.00016989,2]
[424139935,1780608647000,-1144.85,0.00016986,2]
[424139937,1780608647000,-935.62,0.00016986,2]
[424139939,1780608647000,-500.0,0.00016989,2]
[424139940,1780608647000,-1115.37,0.00016989,2]
[424139941,1780608647000,-1814.21,0.00016989,2]
[424139911,1780608647000,-169.35,0.00016787,2]
[424139936,1780608647000,-500.0,0.00016986,2]
[424139924,1780608647000,-156.79807359,0.00016948,2]
[424139888,1780608647000,-9212.47,0.00016712,2]
[424139923,1780608647000,-337.72851043,0.00016948,2]
[424139885,1780608647000,-500.0,0.00016712,2]
[424139884,1780608647000,-186.17,0.00016709,2]
[424139950,1780608647000,-1804.95840045,0.000172,2]
[424139895,1780608647000,-1144.85,0.00016712,2]
[424139891,1780608647000,-801.88,0.00016712,2]
[424139897,1780608647000,-935.62,0.00016712,2]
[424139886,1780608647000,-554.56,0.00016712,2]
[424139890,1780608647000,-500.0,0.00016712,2]
[424139896,1780608647000,-500.0,0.00016712,2]
[424139892,1780608647000,-726.76,0.00016712,2]
[424139893,1780608647000,-798.36,0.00016712,2]
[424139889,1780608647000,-500.0,0.00016712,2]
[424139887,1780608647000,-922.81,0.00016712,2]
[424139922,1780608647000,-345.7098534,0.00016948,2]
[424139894,1780608647000,-500.0,0.00016712,2]
[424139900,1780608647000,-1115.37,0.00016715,2]
[424139901,1780608647000,-1814.21,0.00016715,2]
[424139904,1780608647000,-500.0,0.00016715,2]
[424139910,1780608647000,-1430.5322358,0.00016739,2]
[424139905,1780608647000,-406.92,0.00016716,2]
[424139907,1780608647000,-377.32454022,0.00016739,2]
[424139899,1780608647000,-500.0,0.00016715,2]
[424139903,1780608647000,-500.0,0.00016715,2]
[424139906,1780608647000,-209.62474456,0.00016739,2]
[424139909,1780608647000,-804.67438264,0.00016739,2]
[424139902,1780608647000,-306.81799953,0.00016715,2]
[424139908,1780608647000,-670.79918261,0.00016739,2]
[424139912,1780608647000,-744.97985022,0.000168,2]
[424139898,1780608647000,-500.0,0.00016715,2]
[424139948,1780608647000,-200.0,0.00017,2]
[424139947,1780608647000,-73694.12536449,0.00017,2]
[424139943,1780608647000,-500.0,0.00016989,2]
[424139980,1780608647000,-261.8737841,0.0001747,2]
[424139983,1780608647000,-518.5647801,0.00017472,2]
[424139982,1780608647000,-547.61486724,0.00017472,2]
[424139981,1780608647000,-214.57927572,0.0001747,2]
[424139996,1780608647000,-9212.47,0.00017534,2]
[424139985,1780608647000,-313.59614717,0.00017472,2]
[424139986,1780608647000,-295.15098341,0.00017472,2]
[424139984,1780608647000,-506.59276564,0.00017472,2]
[424139995,1780608647000,-922.81,0.00017534,2]
[424139987,1780608647000,-744.97985022,0.000175,2]
[424139988,1780608647000,-1804.95840045,0.000175,2]
[424139993,1780608647000,-500.0,0.00017534,2]
[424139991,1780608647000,-262.02835593,0.0001753,2]
[424139979,1780608647000,-651.0,0.00017413,2]
[424139992,1780608647000,-558.7961637,0.0001753,2]
[424139994,1780608647000,-554.56,0.00017534,2]
[424139998,1780608647000,-500.0,0.00017534,2]
[424139999,1780608647000,-801.88,0.00017534,2]
[424139997,1780608647000,-500.0,0.00017534,2]
[424140006,1780608647000,-500.0,0.00017537,2]
[424140007,1780608647000,-151.0,0.00017537,2]
[424140003,1780608647000,-1144.85,0.00017534,2]
[424140001,1780608647000,-798.36,0.00017534,2]
[424140002,1780608647000,-500.0,0.00017534,2]
[424140000,1780608647000,-726.76,0.00017534,2]
[424140004,1780608647000,-500.0,0.00017534,2]
[424140005,1780608647000,-935.62,0.00017534,2]
[424139949,1780608647000,-744.97985022,0.000172,2]
[424139990,1780608647000,-163.71907147,0.00017512,2]
[424139978,1780608647000,-651.0,0.00017413,2]
[424139989,1780608647000,-237.20156136,0.00017512,2]
[424139977,1780608647000,-651.0,0.00017413,2]
[424139944,1780608647000,-744.97985022,0.00017,2]
[424139976,1780608647000,-151.0,0.00017413,2]
[424139946,1780608647000,-4517.95458036,0.00017,2]
[424139951,1780608647000,-1415.0,0.0001722,2]
[424139952,1780608647000,-1841.06087638,0.00017251,2]
[424139954,1780608647000,-554.56,0.0001726,2]
[424139956,1780608647000,-9212.47,0.0001726,2]
[424139953,1780608647000,-500.0,0.0001726,2]
[424139958,1780608647000,-500.0,0.0001726,2]
[424139955,1780608647000,-922.81,0.0001726,2]
[424139957,1780608647000,-500.0,0.0001726,2]
[424139959,1780608647000,-801.88,0.0001726,2]
[424139962,1780608647000,-500.0,0.0001726,2]
[424139960,1780608647000,-726.76,0.0001726,2]
[424139945,1780608647000,-1804.95840045,0.00017,2]
[424139961,1780608647000,-798.36,0.0001726,2]
[424139963,1780608647000,-1144.85,0.0001726,2]
[424139974,1780608647000,-151.0,0.00017413,2]
[424139971,1780608647000,-500.0,0.00017263,2]
[424139969,1780608647000,-1814.21,0.00017263,2]
[424139970,1780608647000,-500.0,0.00017263,2]
[424139975,1780608647000,-151.0,0.00017413,2]
[424139968,1780608647000,-1115.37,0.00017263,2]
[424139973,1780608647000,-1804.95840045,0.000173,2]
[424139972,1780608647000,-744.97985022,0.000173,2]
[424139965,1780608647000,-935.62,0.0001726,2]
[424139966,1780608647000,-500.0,0.00017263,2]
[424139964,1780608647000,-500.0,0.0001726,2]
[424139967,1780608647000,-500.0,0.00017263,2]
[424140060,1780608648000,-360.5183271,0.00017862,2]
[424140051,1780608648000,-160.86326811,0.00017862,2]
[424140047,1780608648000,-675.45702085,0.00017821,2]
[424140046,1780608648000,-691.41970681,0.00017821,2]
[424140049,1780608648000,-590.30196683,0.00017823,2]
[424140043,1780608648000,-474.40312272,0.0001782,2]
[424140039,1780608648000,-394.76613693,0.0001782,2]
[424140045,1780608648000,-374.89419648,0.0001782,2]
[424140041,1780608648000,-169.64702593,0.0001782,2]
[424140042,1780608648000,-523.74756819,0.0001782,2]
[424140061,1780608648000,-170.14908065,0.00017862,2]
[424140040,1780608648000,-445.54876977,0.0001782,2]
[424140044,1780608648000,-197.48689933,0.0001782,2]
[424140062,1780608648000,-317.83543937,0.00017862,2]
[424140059,1780608648000,-414.81834356,0.00017862,2]
[424140052,1780608648000,-202.64697312,0.00017862,2]
[424140053,1780608648000,-316.59195418,0.00017862,2]
[424140055,1780608648000,-365.16775391,0.00017862,2]
[424140054,1780608648000,-446.3340773,0.00017862,2]
[424140056,1780608648000,-350.07114594,0.00017862,2]
[424140057,1780608648000,-364.6698954,0.00017862,2]
[424140058,1780608648000,-327.43814294,0.00017862,2]
[424140065,1780608648000,-3631.0,0.00017878,2]
[424140064,1780608648000,-380.70218328,0.00017862,2]
[424140074,1780608648000,-500.0,0.00018082,2]
[424140076,1780608648000,-922.81,0.00018082,2]
[424140072,1780608648000,-151.585,0.0001807,2]
[424140037,1780608648000,-500.0,0.00017811,2]
[424140063,1780608648000,-405.29394625,0.00017862,2]
[424140050,1780608648000,-250.07231548,0.00017862,2]
[424140009,1780608648000,-500.0,0.00017537,2]
[424140038,1780608648000,-500.0,0.00017811,2]
[424140069,1780608648000,-1804.95840045,0.000179,2]
[424140008,1780608648000,-166.331704,0.00017537,2]
[424140010,1780608648000,-1115.37,0.00017537,2]
[424140011,1780608648000,-1814.21,0.00017537,2]
[424140022,1780608648000,-922.81,0.00017808,2]
[424140021,1780608648000,-554.56,0.00017808,2]
[424140023,1780608648000,-9212.47,0.00017808,2]
[424140020,1780608648000,-500.0,0.00017808,2]
[424140012,1780608648000,-500.0,0.00017537,2]
[424140014,1780608648000,-189.60814292,0.0001762,2]
[424140013,1780608648000,-500.0,0.00017537,2]
[424140017,1780608648000,-809.65630398,0.0001762,2]
[424140015,1780608648000,-253.01759499,0.0001762,2]
[424140019,1780608648000,-1804.95840045,0.000177,2]
[424140016,1780608648000,-455.43167099,0.0001762,2]
[424140018,1780608648000,-1066.78942528,0.00017669,2]
[424140025,1780608648000,-500.0,0.00017808,2]
[424140035,1780608648000,-1115.37,0.00017811,2]
[424140036,1780608648000,-1814.21,0.00017811,2]
[424140029,1780608648000,-500.0,0.00017808,2]
[424140030,1780608648000,-1144.85,0.00017808,2]
[424140034,1780608648000,-500.0,0.00017811,2]
[424140026,1780608648000,-801.88,0.00017808,2]
[424140031,1780608648000,-500.0,0.00017808,2]
[424140024,1780608648000,-500.0,0.00017808,2]
[424140027,1780608648000,-726.76,0.00017808,2]
[424140033,1780608648000,-500.0,0.00017811,2]
[424140032,1780608648000,-935.62,0.00017808,2]
[424140028,1780608648000,-798.36,0.00017808,2]
[424140048,1780608648000,-429.15855145,0.00017821,2]
[424140070,1780608648000,-373.35956944,0.00017936,2]
[424140134,1780608648000,-151.0,0.00018528,2]
[424140073,1780608648000,-166.707,0.0001807,2]
[424140113,1780608648000,-9212.47,0.00018356,2]
[424140124,1780608648000,-1115.37,0.00018359,2]
[424140111,1780608648000,-554.56,0.00018356,2]
[424140119,1780608648000,-1144.85,0.00018356,2]
[424140114,1780608648000,-526.19270011,0.00018356,2]
[424140116,1780608648000,-726.76,0.00018356,2]
[424140118,1780608648000,-612.95,0.00018356,2]
[424140121,1780608648000,-935.62,0.00018356,2]
[424140115,1780608648000,-801.88,0.00018356,2]
[424140120,1780608648000,-500.0,0.00018356,2]
[424140117,1780608648000,-798.36,0.00018356,2]
[424140125,1780608648000,-1814.21,0.00018359,2]
[424140127,1780608648000,-500.0,0.00018359,2]
[424140123,1780608648000,-500.0,0.00018359,2]
[424140128,1780608648000,-582.34,0.0001836,2]
[424140129,1780608648000,-386.22,0.00018373,2]
[424140136,1780608648000,-651.0,0.00018528,2]
[424140132,1780608648000,-312.68350229,0.00018447,2]
[424140137,1780608648000,-651.0,0.00018528,2]
[424140130,1780608648000,-150.308,0.00018373,2]
[424140135,1780608648000,-151.0,0.00018528,2]
[424140133,1780608648000,-170.061425,0.00018493,2]
[424140139,1780608648000,-1334.11926663,0.00018547,2]
[424140138,1780608648000,-741.17737035,0.00018547,2]
[424140141,1780608648000,-3705.88685175,0.00018547,2]
[424140142,1780608648000,-593.9605236,0.0001863,2]
[424140071,1780608648000,-1804.95840045,0.00018,2]
[424140140,1780608648000,-2371.76758512,0.00018547,2]
[424140131,1780608648000,-1804.95840045,0.000184,2]
[424140122,1780608648000,-500.0,0.00018359,2]
[424140126,1780608648000,-500.0,0.00018359,2]
[424140108,1780608648000,-151.0,0.000183,2]
[424140075,1780608648000,-554.56,0.00018082,2]
[424140067,1780608648000,-444.0,0.00017878,2]
[424140112,1780608648000,-922.81,0.00018356,2]
[424140068,1780608648000,-197.284,0.00017878,2]
[424140066,1780608648000,-2206.0,0.00017878,2]
[424140077,1780608648000,-9212.47,0.00018082,2]
[424140085,1780608648000,-500.0,0.00018082,2]
[424140078,1780608648000,-356.86,0.00018082,2]
[424140084,1780608648000,-798.36,0.00018082,2]
[424140079,1780608648000,-500.0,0.00018082,2]
[424140089,1780608648000,-500.0,0.00018082,2]
[424140080,1780608648000,-801.88,0.00018082,2]
[424140092,1780608648000,-500.0,0.00018085,2]
[424140082,1780608648000,-726.76,0.00018082,2]
[424140091,1780608648000,-935.62,0.00018082,2]
[424140087,1780608648000,-1144.85,0.00018082,2]
[424140106,1780608648000,-162.380719,0.00018213,2]
[424140109,1780608648000,-500.0,0.00018356,2]
[424140094,1780608648000,-500.0,0.00018085,2]
[424140104,1780608648000,-1804.95840045,0.000182,2]
[424140103,1780608648000,-844.32127607,0.00018171,2]
[424140102,1780608648000,-864.27463351,0.00018171,2]
[424140107,1780608648000,-165.928809,0.00018262,2]
[424140105,1780608648000,-759.87261874,0.00018212,2]
[424140101,1780608648000,-720.0,0.00018139,2]
[424140096,1780608648000,-1115.37,0.00018085,2]
[424140099,1780608648000,-500.0,0.00018085,2]
[424140098,1780608648000,-500.0,0.00018085,2]
[424140100,1780608648000,-860.0843359,0.00018134,2]
[424140097,1780608648000,-1814.21,0.00018085,2]
[424140197,1780608649000,-151.0,0.00019178,2]
[424140186,1780608649000,-554.56,0.00019178,2]
[424140184,1780608649000,-1000.73564164,0.00019172,2]
[424140174,1780608649000,-500.0,0.00018907,2]
[424140188,1780608649000,-9212.47,0.00019178,2]
[424140177,1780608649000,-500.0,0.00018907,2]
[424140175,1780608649000,-1115.37,0.00018907,2]
[424140182,1780608649000,-10578.30748736,0.0001916,2]
[424140179,1780608649000,-304.22362864,0.00019,2]
[424140176,1780608649000,-1814.21,0.00018907,2]
[424140185,1780608649000,-151.0,0.00019178,2]
[424140198,1780608649000,-151.0,0.00019178,2]
[424140178,1780608649000,-500.0,0.00018907,2]
[424140187,1780608649000,-922.81,0.00019178,2]
[424140206,1780608649000,-151.0,0.00019178,2]
[424140190,1780608649000,-801.88,0.00019178,2]
[424140189,1780608649000,-300.0,0.00019178,2]
[424140191,1780608649000,-726.76,0.00019178,2]
[424140196,1780608649000,-151.0,0.00019178,2]
[424140195,1780608649000,-151.0,0.00019178,2]
[424140192,1780608649000,-798.36,0.00019178,2]
[424140194,1780608649000,-935.62,0.00019178,2]
[424140193,1780608649000,-1144.85,0.00019178,2]
[424140201,1780608649000,-151.0,0.00019178,2]
[424140211,1780608649000,-185.057735,0.00019178,2]
[424140202,1780608649000,-151.0,0.00019178,2]
[424140213,1780608649000,-185.057735,0.00019178,2]
[424140212,1780608649000,-185.057735,0.00019178,2]
[424140181,1780608649000,-3234.98845454,0.00019158,2]
[424140199,1780608649000,-151.0,0.00019178,2]
[424140183,1780608649000,-672.2460796,0.00019162,2]
[424140145,1780608649000,-9212.47,0.0001863,2]
[424140173,1780608649000,-500.0,0.00018907,2]
[424140208,1780608649000,-151.0,0.00019178,2]
[424140143,1780608649000,-554.56,0.0001863,2]
[424140146,1780608649000,-801.88,0.0001863,2]
[424140144,1780608649000,-922.81,0.0001863,2]
[424140147,1780608649000,-726.76,0.0001863,2]
[424140149,1780608649000,-1144.85,0.0001863,2]
[424140148,1780608649000,-798.36,0.0001863,2]
[424140151,1780608649000,-935.62,0.0001863,2]
[424140157,1780608649000,-500.0,0.00018633,2]
[424140152,1780608649000,-2670.39,0.0001863,2]
[424140150,1780608649000,-500.0,0.0001863,2]
[424140155,1780608649000,-1115.37,0.00018633,2]
[424140153,1780608649000,-500.0,0.00018633,2]
[424140158,1780608649000,-500.0,0.00018633,2]
[424140154,1780608649000,-500.0,0.00018633,2]
[424140156,1780608649000,-1814.21,0.00018633,2]
[424140160,1780608649000,-151.0,0.000187,2]
[424140170,1780608649000,-630.36,0.00018904,2]
[424140172,1780608649000,-2670.39,0.00018904,2]
[424140171,1780608649000,-935.62,0.00018904,2]
[424140165,1780608649000,-9212.47,0.00018904,2]
[424140167,1780608649000,-726.76,0.00018904,2]
[424140163,1780608649000,-554.56,0.00018904,2]
[424140166,1780608649000,-801.88,0.00018904,2]
[424140162,1780608649000,-165.928808,0.00018795,2]
[424140164,1780608649000,-922.81,0.00018904,2]
[424140161,1780608649000,-911.84714248,0.00018738,2]
[424140159,1780608649000,-1013.18553128,0.00018695,2]
[424140169,1780608649000,-1144.85,0.00018904,2]
[424140180,1780608649000,-1009.76946176,0.00019,2]
[424140205,1780608649000,-151.0,0.00019178,2]
[424140168,1780608649000,-798.36,0.00018904,2]
[424140214,1780608649000,-185.057735,0.00019178,2]
[424140245,1780608649000,-151.0,0.00019178,2]
[424140241,1780608649000,-151.0,0.00019178,2]
[424140248,1780608649000,-151.0,0.00019178,2]
[424140246,1780608649000,-151.0,0.00019178,2]
[424140251,1780608649000,-151.0,0.00019178,2]
[424140250,1780608649000,-151.0,0.00019178,2]
[424140247,1780608649000,-276.527945,0.00019178,2]
[424140249,1780608649000,-151.0,0.00019178,2]
[424140255,1780608649000,-151.0,0.00019178,2]
[424140253,1780608649000,-151.0,0.00019178,2]
[424140257,1780608649000,-151.0,0.00019178,2]
[424140256,1780608649000,-151.0,0.00019178,2]
[424140267,1780608649000,-2126.619918,0.00019178,2]
[424140263,1780608649000,-2126.619918,0.00019178,2]
[424140252,1780608649000,-151.0,0.00019178,2]
[424140265,1780608649000,-171.518474,0.00019178,2]
[424140264,1780608649000,-151.0,0.00019178,2]
[424140258,1780608649000,-151.0,0.00019178,2]
[424140259,1780608649000,-151.0,0.00019178,2]
[424140254,1780608649000,-151.0,0.00019178,2]
[424140261,1780608649000,-151.0,0.00019178,2]
[424140262,1780608649000,-171.518474,0.00019178,2]
[424140260,1780608649000,-171.518474,0.00019178,2]
[424140269,1780608649000,-210.723496,0.00019178,2]
[424140271,1780608649000,-171.518474,0.00019178,2]
[424140270,1780608649000,-171.518474,0.00019178,2]
[424140272,1780608649000,-2126.619918,0.00019178,2]
[424140274,1780608649000,-2126.619918,0.00019178,2]
[424140275,1780608649000,-2126.619918,0.00019178,2]
[424140200,1780608649000,-151.0,0.00019178,2]
[424140268,1780608649000,-2126.619918,0.00019178,2]
[424140243,1780608649000,-151.0,0.00019178,2]
[424140273,1780608649000,-171.518474,0.00019178,2]
[424140242,1780608649000,-151.0,0.00019178,2]
[424140244,1780608649000,-151.0,0.00019178,2]
[424140207,1780608649000,-151.0,0.00019178,2]
[424140209,1780608649000,-185.057735,0.00019178,2]
[424140210,1780608649000,-185.057735,0.00019178,2]
[424140216,1780608649000,-204.8592,0.00019178,2]
[424140226,1780608649000,-151.0,0.00019178,2]
[424140227,1780608649000,-151.0,0.00019178,2]
[424140228,1780608649000,-151.0,0.00019178,2]
[424140217,1780608649000,-185.057735,0.00019178,2]
[424140222,1780608649000,-204.8592,0.00019178,2]
[424140221,1780608649000,-204.8592,0.00019178,2]
[424140223,1780608649000,-204.8592,0.00019178,2]
[424140225,1780608649000,-151.0,0.00019178,2]
[424140215,1780608649000,-204.8592,0.00019178,2]
[424140224,1780608649000,-204.8592,0.00019178,2]
[424140204,1780608649000,-151.0,0.00019178,2]
[424140219,1780608649000,-204.8592,0.00019178,2]
[424140218,1780608649000,-185.057735,0.00019178,2]
[424140232,1780608649000,-151.0,0.00019178,2]
[424140234,1780608649000,-151.0,0.00019178,2]
[424140233,1780608649000,-151.0,0.00019178,2]
[424140235,1780608649000,-151.0,0.00019178,2]
[424140237,1780608649000,-151.0,0.00019178,2]
[424140236,1780608649000,-151.0,0.00019178,2]
[424140240,1780608649000,-151.0,0.00019178,2]
[424140238,1780608649000,-277.69282,0.00019178,2]
[424140239,1780608649000,-151.0,0.00019178,2]
[424140229,1780608649000,-151.0,0.00019178,2]
[424140230,1780608649000,-151.0,0.00019178,2]
[424140231,1780608649000,-151.0,0.00019178,2]
[424140220,1780608649000,-204.8592,0.00019178,2]
[424140316,1780608650000,-726.76,0.00019452,2]
[424140319,1780608650000,-935.62,0.00019452,2]
[424140327,1780608650000,-151.0,0.00019456,2]
[424140311,1780608650000,-952.04168579,0.00019425,2]
[424140312,1780608650000,-554.56,0.00019452,2]
[424140307,1780608650000,-500.0,0.00019181,2]
[424140309,1780608650000,-227.02,0.00019263,2]
[424140308,1780608650000,-151.0,0.000192,2]
[424140306,1780608650000,-500.0,0.00019181,2]
[424140317,1780608650000,-798.36,0.00019452,2]
[424140302,1780608650000,-500.0,0.00019181,2]
[424140310,1780608650000,-1613.04585895,0.00019418,2]
[424140304,1780608650000,-1115.37,0.00019181,2]
[424140322,1780608650000,-500.0,0.00019455,2]
[424140321,1780608650000,-599.44373627,0.00019455,2]
[424140320,1780608650000,-2670.39,0.00019452,2]
[424140328,1780608650000,-1182.04978649,0.00019482,2]
[424140325,1780608650000,-500.0,0.00019455,2]
[424140323,1780608650000,-1115.37,0.00019455,2]
[424140326,1780608650000,-500.0,0.00019455,2]
[424140324,1780608650000,-1814.21,0.00019455,2]
[424140330,1780608650000,-400.0,0.000195,3]
[424140340,1780608650000,-167.1129447,0.00019523,2]
[424140337,1780608650000,-1381.02059188,0.00019523,2]
[424140341,1780608650000,-300.50249717,0.00019523,2]
[424140305,1780608650000,-1814.21,0.00019181,2]
[424140336,1780608650000,-776.82408293,0.00019523,2]
[424140318,1780608650000,-1144.85,0.00019452,2]
[424140313,1780608650000,-922.81,0.00019452,2]
[424140286,1780608650000,-2126.619918,0.00019178,2]
[424140315,1780608650000,-801.88,0.00019452,2]
[424140329,1780608650000,-151.07,0.000195,2]
[424140276,1780608650000,-171.518474,0.00019178,2]
[424140280,1780608650000,-2126.619918,0.00019178,2]
[424140279,1780608650000,-171.518474,0.00019178,2]
[424140277,1780608650000,-171.518474,0.00019178,2]
[424140278,1780608650000,-2126.619918,0.00019178,2]
[424140281,1780608650000,-2126.619918,0.00019178,2]
[424140282,1780608650000,-171.518474,0.00019178,2]
[424140283,1780608650000,-171.518474,0.00019178,2]
[424140285,1780608650000,-2126.619918,0.00019178,2]
[424140284,1780608650000,-171.518474,0.00019178,2]
[424140288,1780608650000,-453.925153,0.00019178,2]
[424140287,1780608650000,-2126.619918,0.00019178,2]
[424140289,1780608650000,-453.925153,0.00019178,2]
[424140291,1780608650000,-453.925153,0.00019178,2]
[424140301,1780608650000,-2670.39,0.00019178,2]
[424140295,1780608650000,-453.925153,0.00019178,2]
[424140290,1780608650000,-453.925153,0.00019178,2]
[424140292,1780608650000,-453.925153,0.00019178,2]
[424140296,1780608650000,-453.925153,0.00019178,2]
[424140298,1780608650000,-453.925153,0.00019178,2]
[424140300,1780608650000,-285.9,0.00019178,2]
[424140293,1780608650000,-453.925153,0.00019178,2]
[424140299,1780608650000,-453.925153,0.00019178,2]
[424140294,1780608650000,-453.925153,0.00019178,2]
[424140297,1780608650000,-453.925153,0.00019178,2]
[424140303,1780608650000,-500.0,0.00019181,2]
[424140314,1780608650000,-9212.47,0.00019452,2]
[424140335,1780608650000,-431.56893496,0.00019523,2]
[424140331,1780608650000,-400.0,0.000195,2]
[424140332,1780608650000,-180.78488929,0.00019503,2]
[424140396,1780608650000,-151.0,0.0001961,2]
[424140398,1780608650000,-151.0,0.0001961,2]
[424140400,1780608650000,-151.0,0.0001961,2]
[424140386,1780608650000,-151.0,0.0001961,2]
[424140385,1780608650000,-151.0,0.00019603,2]
[424140392,1780608650000,-151.0,0.0001961,2]
[424140390,1780608650000,-151.0,0.0001961,2]
[424140388,1780608650000,-151.0,0.0001961,2]
[424140402,1780608650000,-171.518474,0.0001961,2]
[424140405,1780608650000,-171.518474,0.0001961,2]
[424140420,1780608650000,-453.925153,0.0001961,2]
[424140422,1780608650000,-453.925153,0.0001961,2]
[424140418,1780608650000,-453.925153,0.0001961,2]
[424140407,1780608650000,-2126.619918,0.0001961,2]
[424140424,1780608650000,-641456.54736709,0.0001961,2]
[424140427,1780608650000,-51510.67439688,0.0001961,2]
[424140411,1780608650000,-2126.619918,0.0001961,2]
[424140409,1780608650000,-171.518474,0.0001961,2]
[424140413,1780608650000,-171.518474,0.0001961,2]
[424140417,1780608650000,-453.925153,0.0001961,2]
[424140415,1780608650000,-2126.619918,0.0001961,2]
[424140430,1780608650000,-3058.15156595,0.00011993,2]
[424140436,1780608650000,-554.56,0.00019726,2]
[424140434,1780608650000,-160.0,0.00019631,3]
[424140439,1780608650000,-9212.47,0.00019726,2]
[424140432,1780608650000,-69847.61373603,0.0001961,2]
[424140334,1780608650000,-491.79527303,0.00019503,2]
[424140394,1780608650000,-151.0,0.0001961,2]
[424140383,1780608650000,-151.0,0.00019603,2]
[424140403,1780608650000,-2126.619918,0.0001961,2]
[424140379,1780608650000,-204.8592,0.00019603,2]
[424140438,1780608650000,-922.81,0.00019726,2]
[424140333,1780608650000,-651.0,0.00019503,2]
[424140339,1780608650000,-1241.26960411,0.00019523,2]
[424140338,1780608650000,-689.59422451,0.00019523,2]
[424140342,1780608650000,-222.02194378,0.00019523,2]
[424140344,1780608650000,-710.4702201,0.00019523,2]
[424140381,1780608650000,-204.8592,0.00019603,2]
[424140343,1780608650000,-399.6394988,0.00019523,2]
[424140346,1780608650000,-1108.99960918,0.00019523,2]
[424140355,1780608650000,-151.0,0.00019603,2]
[424140349,1780608650000,-184.88019222,0.00019582,2]
[424140356,1780608650000,-151.0,0.00019603,2]
[424140347,1780608650000,-1063.82166623,0.00019525,2]
[424140350,1780608650000,-300.0,0.00019589,3]
[424140345,1780608650000,-2206.70151842,0.00019523,2]
[424140348,1780608650000,-5686.76159982,0.00019531,2]
[424140353,1780608650000,-337.09233305,0.000196,2]
[424140377,1780608650000,-204.8592,0.00019603,2]
[424140368,1780608650000,-185.057735,0.00019603,2]